bitfinex-derivatives/quotes_SOLF0:USTF0_20250527
["timestamp","ask_amount","ask_price","bid_price","bid_amount"]
[1748382798824,16.63862061,176.51,176.5,3.798e-05]
[1748382800229,16.63906489,176.51,176.5,3.798e-05]
[1748382801032,16.63923313,176.51,176.5,3.798e-05]
[1748382801231,14.09691951,176.51,176.5,3.798e-05]
[1748382801531,16.63919914,176.51,176.5,3.798e-05]
[1748382801933,16.63965341,176.51,176.5,3.798e-05]
[1748382804131,10.1904339,176.51,176.5,3.798e-05]
[1748382804431,16.63965341,176.51,176.5,3.798e-05]
[1748382805034,10.1904339,176.51,176.5,3.798e-05]
[1748382805228,16.63734219,176.51,176.5,3.798e-05]
[1748382805636,16.63732695,176.51,176.5,3.798e-05]
[1748382805840,10.1904339,176.51,176.5,3.798e-05]
[1748382806030,16.63732695,176.51,176.5,3.798e-05]
[1748382806434,16.63831999,176.51,176.5,3.798e-05]
[1748382807531,8.20632694,176.51,176.5,3.798e-05]
[1748382807831,14.65321999,176.51,176.5,3.798e-05]
[1748382808235,12.10949305,176.51,176.5,3.798e-05]
[1748382808434,14.65333772,176.51,176.5,3.798e-05]
[1748382808833,14.6518704,176.51,176.5,3.798e-05]
[1748382809033,14.65187083,176.51,176.5,3.798e-05]
[1748382809436,8.20497778,176.51,176.5,3.798e-05]
[1748382809635,14.65187083,176.51,176.5,3.798e-05]
[1748382811133,12.10949305,176.51,176.5,3.798e-05]
[1748382811331,14.65170223,176.51,176.5,3.798e-05]
[1748382811534,14.65159766,176.51,176.5,3.798e-05]
[1748382813139,8.20470461,176.51,176.5,3.798e-05]
[1748382813342,14.65159766,176.51,176.5,3.798e-05]
[1748382814042,14.65161166,176.51,176.5,3.798e-05]
[1748382815941,12.10949305,176.51,176.5,3.798e-05]
[1748382816142,14.65155819,176.51,176.5,3.798e-05]
[1748382816538,12.10949305,176.51,176.5,3.798e-05]
[1748382816737,14.65157523,176.51,176.5,3.798e-05]
[1748382819346,14.65152738,176.51,176.5,3.798e-05]
[1748382819944,8.20463433,176.51,176.5,3.798e-05]
[1748382820142,14.65152738,176.51,176.5,3.798e-05]
[1748382821437,14.65198706,176.51,176.5,3.798e-05]
[1748382821845,14.65216534,176.51,176.5,3.798e-05]
[1748382822040,12.10949305,176.51,176.5,3.798e-05]
[1748382822248,14.65220547,176.51,176.5,3.798e-05]
[1748382822850,14.65237576,176.51,176.5,3.798e-05]
[1748382823644,43.85237576,176.51,176.5,3.798e-05]
[1748382824447,43.85281667,176.51,176.5,3.798e-05]
[1748382825348,37.40592362,176.51,176.5,3.798e-05]
[1748382825543,37.40623855,176.51,176.5,3.798e-05]
[1748382825948,37.40633331,176.51,176.5,3.798e-05]
[1748382827151,37.40687342,176.51,176.5,3.798e-05]
[1748382827958,37.40716939,176.51,176.5,3.798e-05]
[1748382829052,37.40754613,176.51,176.5,3.798e-05]
[1748382829252,37.40753499,176.51,176.5,3.798e-05]
[1748382830746,37.40853366,176.51,176.5,3.798e-05]
[1748382831649,37.40853435,176.51,176.5,3.798e-05]
[1748382832944,34.8626,176.51,176.5,3.798e-05]
[1748382833150,37.41057049,176.51,176.5,3.798e-05]
[1748382834357,37.41031031,176.51,176.5,3.798e-05]
[1748382835660,37.4100401,176.51,176.5,3.798e-05]
[1748382836763,37.40961421,176.51,176.5,3.798e-05]
[1748382838164,37.40953528,176.51,176.5,3.798e-05]
[1748382838352,37.40953512,176.51,176.5,3.798e-05]
[1748382840764,37.4092497,176.51,176.5,3.798e-05]
[1748382841171,37.40913671,176.51,176.5,3.798e-05]
[1748382841762,37.4091466,176.51,176.5,3.798e-05]
[1748382842561,41.30949305,176.51,176.5,3.798e-05]
[1748382842768,43.85599508,176.51,176.5,3.798e-05]
[1748382842964,43.85680705,176.51,176.5,3.798e-05]
[1748382843267,43.85682793,176.51,176.5,3.798e-05]
[1748382844555,43.85688725,176.51,176.5,3.798e-05]
[1748382844856,43.85598678,176.51,176.5,3.798e-05]
[1748382845056,41.30859258,176.51,176.5,3.798e-05]
[1748382845369,43.85604583,176.51,176.5,3.798e-05]
[1748382846267,43.85613603,176.51,176.5,3.798e-05]
[1748382847366,43.85625979,176.51,176.5,3.798e-05]
[1748382847763,43.85626059,176.51,176.5,3.798e-05]
[1748382848265,43.85638422,176.51,176.5,3.798e-05]
[1748382848972,43.85651219,176.51,176.5,3.798e-05]
[1748382850264,41.30859258,176.51,176.5,3.798e-05]
[1748382850458,43.85648979,176.51,176.5,3.798e-05]
[1748382850663,43.85648636,176.51,176.5,3.798e-05]
[1748382850864,43.85649805,176.51,176.5,3.798e-05]
[1748382851664,41.30859258,176.51,176.5,3.798e-05]
[1748382851866,43.85646239,176.51,176.5,3.798e-05]
[1748382852170,43.85646569,176.51,176.5,3.798e-05]
[1748382852472,41.30859258,176.51,176.5,3.798e-05]
[1748382852867,43.85645162,176.51,176.5,3.798e-05]
[1748382853172,43.85649236,176.51,176.5,3.798e-05]
[1748382854068,41.30859258,176.51,176.5,3.798e-05]
[1748382854275,43.85625334,176.51,176.5,3.798e-05]
[1748382854569,43.85626206,176.51,176.5,3.798e-05]
[1748382855565,43.85627725,176.51,176.5,3.798e-05]
[1748382855771,43.85626743,176.51,176.5,3.798e-05]
[1748382856967,43.85678587,176.51,176.5,3.798e-05]
[1748382858080,41.30834433,176.51,176.5,3.798e-05]
[1748382858276,43.85740564,176.51,176.5,3.798e-05]
[1748382859277,43.85756013,176.51,176.5,3.798e-05]
[1748382859781,41.30834433,176.51,176.5,3.798e-05]
[1748382860074,43.85758431,176.51,176.5,3.798e-05]
[1748382860279,41.30834433,176.51,176.5,3.798e-05]
[1748382860781,43.85757226,176.51,176.5,3.798e-05]
[1748382860980,43.8575478,176.51,176.5,3.798e-05]
[1748382861181,43.85756176,176.51,176.5,3.798e-05]
[1748382861475,41.30834433,176.51,176.5,3.798e-05]
[1748382861682,43.8575626,176.51,176.5,3.798e-05]
[1748382862271,14.6575626,176.51,176.5,3.798e-05]
[1748382862475,43.7975626,176.51,176.5,3.798e-05]
[1748382863977,41.24834433,176.51,176.5,3.798e-05]
[1748382864172,43.7974121,176.51,176.5,3.798e-05]
[1748382864479,43.7973899,176.51,176.5,3.798e-05]
[1748382864881,37.35164557,176.51,176.5,3.798e-05]
[1748382865176,43.7973899,176.51,176.5,3.798e-05]
[1748382865672,43.79733374,176.51,176.5,3.798e-05]
[1748382865984,37.35158941,176.51,176.5,3.798e-05]
[1748382866573,37.3515572,176.51,176.5,3.798e-05]
[1748382866777,37.35150672,176.51,176.5,3.798e-05]
[1748382867276,43.79722193,176.51,176.5,3.798e-05]
[1748382867675,43.79722064,176.51,176.5,3.798e-05]
[1748382868278,43.79696976,176.51,176.5,3.798e-05]
[1748382868581,43.7969608,176.51,176.5,3.798e-05]
[1748382869079,43.79686426,176.51,176.5,3.798e-05]
[1748382870476,43.79660789,176.51,176.5,3.798e-05]
[1748382870682,43.79653875,176.51,176.5,3.798e-05]
[1748382871583,43.79631862,176.51,176.5,3.798e-05]
[1748382871777,43.7963634,176.51,176.5,3.798e-05]
[1748382871978,43.79645721,176.51,176.5,3.798e-05]
[1748382873482,41.24843814,176.51,176.5,3.798e-05]
[1748382873674,43.79634878,176.51,176.5,3.798e-05]
[1748382874387,43.79629824,176.51,176.5,3.798e-05]
[1748382875280,43.79621861,176.51,176.5,3.798e-05]
[1748382877288,43.79604381,176.51,176.5,3.798e-05]
[1748382878485,43.79601253,176.51,176.5,3.798e-05]
[1748382878682,43.79588133,176.51,176.5,3.798e-05]
[1748382878890,37.35004426,176.51,176.5,3.798e-05]
[1748382879187,43.7958824,176.51,176.5,3.798e-05]
[1748382879387,43.79588343,176.51,176.5,3.798e-05]
[1748382880586,43.79596908,176.51,176.5,3.798e-05]
[1748382881384,41.24843814,176.51,176.5,3.798e-05]
[1748382881584,43.79612388,176.51,176.5,3.798e-05]
[1748382881988,43.79630511,176.51,176.5,3.798e-05]
[1748382882390,43.79614309,176.51,176.5,3.798e-05]
[1748382884590,43.79671305,176.51,176.5,3.798e-05]
[1748382885192,41.24827612,176.51,176.5,3.798e-05]
[1748382885393,43.79662354,176.51,176.5,3.798e-05]
[1748382885786,41.24827612,176.51,176.5,3.798e-05]
[1748382885993,43.79666846,176.51,176.5,3.798e-05]
[1748382886493,43.79674159,176.51,176.5,3.798e-05]
[1748382886996,41.24827612,176.51,176.5,3.798e-05]
[1748382887192,43.79695917,176.51,176.5,3.798e-05]
[1748382887393,43.79695635,176.51,176.5,3.798e-05]
[1748382887594,43.79695634,176.51,176.5,3.798e-05]
[1748382889491,43.79722904,176.51,176.5,3.798e-05]
[1748382889696,37.35159921,176.51,176.5,3.798e-05]
[1748382890391,37.35170698,176.51,176.5,3.798e-05]
[1748382890997,34.8026,176.51,176.5,3.798e-05]
[1748382891193,37.3518385,176.51,176.5,3.798e-05]
[1748382892199,37.35193637,176.51,176.5,3.798e-05]
[1748382892496,43.79761249,176.51,176.5,3.798e-05]
[1748382892700,43.79761318,176.51,176.5,3.798e-05]
[1748382894099,41.24827612,176.51,176.5,3.798e-05]
[1748382894298,43.79767026,176.51,176.5,3.798e-05]
[1748382894698,43.79779875,176.51,176.5,3.798e-05]
[1748382895603,41.24827612,176.51,176.5,3.798e-05]
[1748382895804,43.79781917,176.51,176.5,3.798e-05]
[1748382896102,8.21214305,176.51,176.5,3.798e-05]
[1748382896311,2.54954305,176.51,176.5,3.798e-05]
[1748382897193,0.04250215,176.53,176.5,3.798e-05]
[1748382897398,2.54942058,176.52,176.5,3.798e-05]
[1748382897599,5.70440215,176.53,176.5,3.798e-05]
[1748382898300,5.6623,176.52,176.5,3.798e-05]
[1748382898508,0.04250215,176.53,176.5,3.798e-05]
[1748382899802,5.70460215,176.53,176.5,3.798e-05]
[1748382900298,5.6623,176.52,176.5,3.798e-05]
[1748382903712,17.01,176.73,176.51,6.44275986]
[1748382903901,6.44275986,176.59,176.51,6.44275986]
[1748382904506,5.6604,176.58,176.55,5.6612]
[1748382904813,5.69777401,176.58,176.55,5.69834487]
[1748382905818,4.0403,176.71,176.55,0.03714487]
[1748382906010,29.1,176.63,176.55,0.03714487]
[1748382906211,6.44275986,176.59,176.55,0.03714487]
[1748382906519,5.6609,176.56,176.55,0.03714487]
[1748382919722,12.10301534,176.56,176.55,0.03714487]
[1748382920819,12.10335682,176.56,176.55,0.03714487]
[1748382930931,5.6609,176.56,176.55,0.03714487]
[1748382931127,12.10335682,176.56,176.55,0.03714487]
[1748382932932,5.6609,176.56,176.55,0.03714487]
[1748382933134,12.10335682,176.56,176.55,0.03714487]
[1748382933435,12.10284994,176.56,176.55,0.03714487]
[1748382935827,5.6609,176.56,176.55,0.03714487]
[1748382936025,12.10284994,176.56,176.55,0.03714487]
[1748382942931,14.58766415,176.56,176.55,0.03714487]
[1748382943241,12.10284994,176.56,176.55,0.03714487]
[1748382943939,14.58789725,176.56,176.55,0.03714487]
[1748382945137,12.10284994,176.56,176.55,0.03714487]
[1748382945329,14.58902757,176.56,176.55,0.03714487]
[1748382945534,14.58907695,176.56,176.55,0.03714487]
[1748382946137,14.58921564,176.56,176.55,0.03714487]
[1748382946540,12.10284994,176.56,176.55,0.03714487]
[1748382947540,41.12284994,176.56,176.55,0.03714487]
[1748382948743,43.6104382,176.56,176.55,0.03714487]
[1748382949641,41.12284994,176.56,176.55,0.03714487]
[1748382950940,43.61081742,176.56,176.55,0.03714487]
[1748382951748,5.6609,176.56,176.55,0.03714487]
[1748382970664,0.03819239,176.57,176.55,5.69814487]
[1748382970863,0.03819239,176.57,176.55,0.03714487]
[1748382972464,0.03819239,176.57,176.56,5.6609]
[1748382973365,0.03819239,176.57,176.55,5.69824487]
[1748382975669,0.03819239,176.57,176.56,5.6609]
[1748382979382,0.03819239,176.57,176.55,5.69834487]
[1748382979963,5.69899239,176.57,176.55,0.03714487]
[1748382980469,0.03819239,176.57,176.55,0.03714487]
[1748382981969,5.6609,176.56,176.55,0.03714487]
[1748382986576,5.69889239,176.57,176.55,0.03714487]
[1748382988179,5.69889239,176.57,176.55,5.69824487]
[1748382988476,5.6609,176.56,176.55,0.03714487]
[1748383004297,12.10213359,176.56,176.55,0.03714487]
[1748383004598,6.44123359,176.56,176.46,28.94]
[1748383004897,6.44123359,176.54,176.46,35.38123359]
[1748383005095,6.44123359,176.54,176.49,5.6631]
[1748383005497,5.6627,176.51,176.48,5.6633]
[1748383005694,5.6627,176.51,176.48,0.0390498]
[1748383005695,0.04011847,176.51,176.48,0.0390498]
[1748383006092,0.04011847,176.51,176.49,5.6629]
[1748383006495,0.04011847,176.51,176.48,0.0390498]
[1748383006688,5.70281847,176.51,176.48,5.7025498]
[1748383011189,5.70281847,176.51,176.48,0.0390498]
[1748383011997,5.70281847,176.51,176.48,5.7025498]
[1748383017404,5.6629,176.5,176.48,5.7025498]
[1748383019796,5.70281847,176.51,176.49,5.663]
[1748383020400,5.70281847,176.51,176.49,5.6631]
[1748383020700,0.04011847,176.51,176.48,6.48028339]
[1748383021308,0.04011847,176.51,176.49,5.6629]
[1748383025607,0.04011847,176.51,176.48,6.48028339]
[1748383026909,0.04011847,176.51,176.5,5.6628]
[1748383035018,0.04011847,176.51,176.49,5.6629]
[1748383035211,0.04011847,176.51,176.48,0.0390498]
[1748383036511,0.04011847,176.51,176.49,5.6629]
[1748383036707,0.04011847,176.51,176.48,0.0390498]
[1748383037117,0.04011847,176.51,176.49,5.6629]
[1748383037512,0.04011847,176.51,176.48,0.0390498]
[1748383037716,0.04011847,176.51,176.49,5.6629]
[1748383040723,0.04011847,176.51,176.5,5.6628]
[1748383048418,0.04011847,176.51,176.49,5.6631]
[1748383055517,0.04011847,176.51,176.5,5.6628]
[1748383055721,0.04011847,176.51,176.48,0.0390498]
[1748383056321,0.04011847,176.51,176.5,5.6628]
[1748383059222,0.04011847,176.51,176.49,5.663]
[1748383060820,0.04011847,176.51,176.5,5.6628]
[1748383061024,16.9658,176.74,176.5,28.9]
[1748383061225,6.44298401,176.6,176.51,6.44298401]
[1748383061427,2.48607905,176.59,176.54,5.6615]
[1748383061634,6.44298401,176.6,176.54,5.6615]
[1748383061933,2.48619906,176.59,176.51,6.43952418]
[1748383062125,0.04197259,176.57,176.53,0.03916639]
[1748383064032,0.04197259,176.57,176.56,5.6609]
[1748383074542,11.3128,176.71,176.6,5.6595]
[1748383074739,6.43952418,176.64,176.56,6.43952418]
[1748383075338,6.43952418,176.64,176.61,5.6593]
[1748383075841,12.13553361,176.64,176.61,0.04100791]
[1748383076433,5.6588,176.63,176.61,0.04100791]
[1748383076842,6.47703361,176.64,176.61,0.04100791]
[1748383077044,5.659,176.62,176.61,0.04100791]
[1748383077742,12.09852418,176.62,176.61,0.04100791]
[1748383080647,5.6607,176.57,176.55,5.6611]
[1748383081149,6.43952418,176.59,176.54,28.84]
[1748383081750,5.6608,176.57,176.55,0.03875383]
[1748383082452,5.6609,176.56,176.55,0.03875383]
[1748383083150,0.03811417,176.58,176.55,0.03875383]
[1748383083151,5.6607,176.57,176.55,0.03875383]
[1748383086348,0.03811417,176.58,176.55,0.03875383]
[1748383086547,10.49082418,176.65,176.57,6.43952418]
[1748383087451,5.6585,176.64,176.6,5.6595]
[1748383087650,5.69525641,176.64,176.6,5.70160049]
[1748383087851,5.69525641,176.64,176.6,0.04210049]
[1748383088255,0.03675641,176.64,176.61,5.6591]
[1748383089649,0.03675641,176.64,176.62,5.659]
[1748383091262,5.69515641,176.64,176.62,5.659]
[1748383091653,0.03675641,176.64,176.62,5.659]
[1748383093254,6.47628059,176.64,176.6,0.04210049]
[1748383093451,6.43952418,176.62,176.6,0.04210049]
[1748383093851,5.6593,176.61,176.6,0.04210049]
[1748383096160,6.43952418,176.62,176.51,1.9199]
[1748383096364,6.43952418,176.56,176.51,1.9199]
[1748383096558,6.43952418,176.55,176.52,5.662]
[1748383097057,12.10102418,176.55,176.52,5.662]
[1748383097363,12.14267668,176.55,176.52,0.04264108]
[1748383097755,5.6616,176.54,176.52,0.04264108]
[1748383099370,5.6619,176.53,176.52,0.04264108]
[1748383100860,28.8616525,176.55,176.46,5.664]
[1748383101165,28.82,176.55,176.46,5.664]
[1748383101361,5.6632,176.49,176.46,5.664]
[1748383101860,5.7045795,176.49,176.46,5.70456286]
[1748383102260,0.0413795,176.49,176.47,5.6638]
[1748383104358,0.0413795,176.49,176.46,5.70446286]
[1748383104559,0.0413795,176.49,176.46,0.04056286]
[1748383104960,5.7046795,176.49,176.46,0.04056286]
[1748383106569,5.6638,176.47,176.46,0.04056286]
[1748383107369,5.6649,176.44,176.38,2.0084]
[1748383108060,5.6649,176.44,176.39,5.6661]
[1748383108461,0.03664352,176.43,176.4,0.04197343]
[1748383109071,28.85664352,176.43,176.4,0.04197343]
[1748383109460,5.6657,176.41,176.4,0.04197343]
[1748383111976,15.74922053,176.41,176.27,28.84]
[1748383112162,10.09151185,176.37,176.24,1.9047]
[1748383112363,5.6692,176.31,176.25,5.6708]
[1748383112566,30.78,176.36,176.25,5.6708]
[1748383112961,0.03633734,176.32,176.29,0.03618538]
[1748383113868,5.6692,176.31,176.29,0.03618538]
[1748383114763,5.6693,176.3,176.29,0.03618538]
[1748383114968,10.09937699,176.3,176.2,32.7178]
[1748383115169,10.10098474,176.29,176.17,28.84]
[1748383115469,5.6717,176.23,176.17,28.84]
[1748383115668,28.84,176.25,176.17,28.84]
[1748383115866,5.6719,176.22,176.17,28.84]
[1748383116066,5.6719,176.22,176.19,0.03753378]
[1748383116266,0.03712122,176.23,176.19,0.03753378]
[1748383118373,0.03712122,176.23,176.19,5.71003378]
[1748383119366,0.03712122,176.23,176.19,0.03753378]
[1748383120574,10.13810596,176.23,176.19,0.03753378]
[1748383121571,5.6725,176.2,176.19,0.03753378]
[1748383122366,10.10098474,176.2,176.11,28.86]
[1748383122571,11.96748474,176.2,176.11,28.86]
[1748383123276,0.03822694,176.17,176.14,0.03695442]
[1748383124178,0.03822694,176.17,176.14,5.71135442]
[1748383128983,28.89822694,176.17,176.14,0.03695442]
[1748383129982,5.674,176.16,176.14,0.03695442]
[1748383130278,28.89822694,176.17,176.14,0.03695442]
[1748383130476,5.6738,176.16,176.14,0.03695442]
[1748383130679,28.89822694,176.17,176.14,0.03695442]
[1748383130980,5.6741,176.15,176.14,0.03695442]
[1748383135981,28.86,176.16,176.14,0.03695442]
[1748383136878,5.6741,176.15,176.14,0.03695442]
[1748383141387,34.5338,176.16,176.14,0.03695442]
[1748383141588,28.86,176.16,176.14,0.03695442]
[1748383143694,28.86,176.16,176.15,5.6741]
[1748383144189,0.03822694,176.17,176.16,5.6738]
[1748383144393,28.86,176.22,176.14,0.03695442]
[1748383144590,28.86,176.22,176.14,2.09195442]
[1748383144793,28.86,176.22,176.19,5.6726]
[1748383145493,34.57299965,176.22,176.19,5.70908167]
[1748383145895,28.90109965,176.22,176.19,5.70908167]
[1748383146292,0.04109965,176.22,176.19,0.03648167]
[1748383147294,0.04109965,176.22,176.21,5.6722]
[1748383147798,28.86,176.26,176.19,0.03648167]
[1748383148296,5.67,176.28,176.19,0.03648167]
[1748383148897,0.03913786,176.25,176.19,0.03648167]
[1748383149397,0.03913786,176.25,176.23,5.6713]
[1748383151804,0.03913786,176.25,176.24,5.6712]
[1748383153104,0.03913786,176.25,176.23,0.03937425]
[1748383153605,0.03913786,176.25,176.24,5.6712]
[1748383155905,0.03913786,176.25,176.23,5.71087425]
[1748383156906,0.03913786,176.25,176.24,5.6712]
[1748383162408,28.84,176.32,176.23,0.03937425]
[1748383162613,32.8422,176.35,176.29,5.6693]
[1748383163615,5.6685,176.33,176.3,0.03987245]
[1748383164213,5.71116034,176.34,176.3,0.03987245]
[1748383164615,0.04316034,176.34,176.3,0.03987245]
[1748383164814,5.6685,176.33,176.3,0.03987245]
[1748383166012,5.6687,176.32,176.3,0.03987245]
[1748383166220,0.04316034,176.34,176.3,0.03987245]
[1748383167615,5.6689,176.31,176.3,0.03987245]
[1748383176619,0.04316034,176.34,176.3,0.03987245]
[1748383177014,5.6685,176.33,176.3,0.03987245]
[1748383177719,5.6685,176.33,176.3,5.70907245]
[1748383189022,5.6687,176.32,176.3,0.03987245]
[1748383189730,5.71136034,176.34,176.3,0.03987245]
[1748383189925,5.71136034,176.34,176.3,5.70897245]
[1748383190731,0.04316034,176.34,176.3,5.70897245]
[1748383191231,5.71116034,176.34,176.3,5.70897245]
[1748383192028,5.71116034,176.34,176.31,5.6689]
[1748383192630,0.04316034,176.34,176.31,5.6689]
[1748383193331,0.04316034,176.34,176.3,0.03987245]
[1748383194632,0.04316034,176.34,176.33,5.6683]
[1748383195533,6.034e-05,176.34,176.33,5.6683]
[1748383200637,3.9861,176.42,176.39,5.6663]
[1748383200936,1.9932,176.42,176.39,5.6663]
[1748383201734,1.9932,176.42,176.39,0.03633448]
[1748383201735,7.69625093,176.42,176.39,0.03633448]
[1748383201935,2.03075093,176.42,176.39,0.03633448]
[1748383202241,7.69635093,176.42,176.39,0.03633448]
[1748383202837,5.6657,176.41,176.39,0.03633448]
[1748383203225,2.03075093,176.42,176.39,0.03633448]
[1748383203426,40.91757122,176.42,176.32,28.8]
[1748383203732,40.91757122,176.42,176.24,11.3421]
[1748383203733,10.08682029,176.39,176.28,1.8855]
[1748383203927,30.692,176.38,176.26,28.8]
[1748383204334,0.04238705,176.34,176.31,0.04341762]
[1748383204539,5.6687,176.32,176.31,0.04341762]
[1748383205036,2.0256,176.33,176.25,5.6707]
[1748383205233,2.0256,176.33,176.23,28.8]
[1748383205428,5.6687,176.32,176.28,5.6697]
[1748383205831,0.03597062,176.32,176.28,0.04173174]
[1748383206440,5.70457062,176.32,176.28,5.71143174]
[1748383206638,5.70457062,176.32,176.28,0.04173174]
[1748383207039,0.03597062,176.32,176.28,0.04173174]
[1748383207444,0.03597062,176.32,176.29,5.6696]
[1748383207636,0.03597062,176.32,176.28,0.04173174]
[1748383208037,0.03597062,176.32,176.3,5.669]
[1748383208439,0.03597062,176.32,176.28,0.04173174]
[1748383210346,0.03597062,176.32,176.31,5.6689]
[1748383212440,10.08682029,176.39,176.31,5.6689]
[1748383212441,28.8,176.4,176.31,28.8]
[1748383212845,5.6665,176.39,176.31,28.8]
[1748383213346,34.4662,176.4,176.36,5.6672]
[1748383213648,0.04107377,176.37,176.36,5.6672]
[1748383236877,0.04107377,176.37,176.35,34.4275]
[1748383237064,0.04107377,176.37,176.33,0.04167822]
[1748383237571,5.70827377,176.37,176.33,0.04167822]
[1748383239876,5.70827377,176.37,176.33,5.70997822]
[1748383241672,0.04107377,176.37,176.33,0.04167822]
[1748383241971,2.0333,176.36,176.33,0.04167822]
[1748383242477,2.0333,176.36,176.3,6.09]
[1748383242875,5.6686,176.32,176.3,6.09]
[1748383243265,2.0333,176.36,176.3,6.09]
[1748383243470,5.70767286,176.35,176.32,5.6684]
[1748383244070,5.668,176.34,176.31,5.70502075]
[1748383244777,5.6685,176.33,176.31,0.03622075]
[1748383245971,5.6686,176.32,176.31,0.03622075]
[1748383246176,1.86,176.34,176.31,0.03622075]
[1748383246379,5.6686,176.32,176.31,0.03622075]
[1748383254273,5.6686,176.32,176.13,27.07682029]
[1748383254274,5.68,176.32,176.23,28.74]
[1748383254476,10.08682029,176.33,176.18,499.82682029]
[1748383254477,1.9337,176.31,176.22,28.74]
[1748383254779,1.9337,176.31,176.17,2.0096]
[1748383254780,5.6727,176.2,176.17,28.74]
[1748383254970,10.08682029,176.25,176.17,28.74]
[1748383255171,0.03676832,176.23,176.19,0.03642647]
[1748383255781,5.6725,176.2,176.19,0.03642647]
[1748383256871,5.6721,176.22,176.19,0.03642647]
[1748383257871,5.6722,176.21,176.19,0.03642647]
[1748383258283,5.6725,176.2,176.19,0.03642647]
[1748383258483,9.4443,176.2,176.19,0.03642647]
[1748383259085,3.7718,176.2,176.19,0.03642647]
[1748383261986,0.03676832,176.23,176.19,0.03642647]
[1748383262187,0.03676832,176.23,176.2,5.6725]
[1748383262389,0.03676832,176.23,176.19,0.03642647]
[1748383262788,0.03676832,176.23,176.2,5.6723]
[1748383264085,0.03676832,176.23,176.19,5.70912647]
[1748383264586,0.03676832,176.23,176.19,0.03642647]
[1748383265985,5.6721,176.22,176.19,0.03642647]
[1748383266495,5.6719,176.22,176.19,0.03642647]
[1748383266791,0.03676832,176.23,176.19,0.03642647]
[1748383267593,5.6723,176.21,176.19,0.03642647]
[1748383268490,5.6725,176.2,176.19,0.03642647]
[1748383270090,0.03676832,176.23,176.19,0.03642647]
[1748383270704,5.672,176.22,176.19,0.03642647]
[1748383270993,0.03676832,176.23,176.19,0.03642647]
[1748383271599,5.6724,176.21,176.19,0.03642647]
[1748383271895,0.03676832,176.23,176.19,0.03642647]
[1748383272398,5.6725,176.2,176.19,0.03642647]
[1748383273492,5.6722,176.21,176.19,0.03642647]
[1748383273893,0.03676832,176.23,176.19,0.03642647]
[1748383275598,5.70846832,176.23,176.19,5.70912647]
[1748383275788,0.03676832,176.23,176.19,0.03642647]
[1748383276994,0.03676832,176.23,176.2,5.6724]
[1748383278096,0.03676832,176.23,176.19,0.03642647]
[1748383278493,5.6718,176.22,176.19,0.03642647]
[1748383278797,0.03676832,176.23,176.19,0.03642647]
[1748383280301,5.6725,176.2,176.19,0.03642647]
[1748383280702,0.03676832,176.23,176.19,0.03642647]
[1748383281398,0.03676832,176.23,176.22,5.6718]
[1748383281906,28.76,176.29,176.19,3.99112647]
[1748383282698,0.04070544,176.26,176.24,5.6709]
[1748383283999,0.04070544,176.26,176.25,5.6709]
[1748383284197,0.04070544,176.26,176.23,0.04058926]
[1748383284498,0.04070544,176.26,176.25,5.6709]
[1748383286302,0.04070544,176.26,176.24,5.6711]
[1748383287505,1.8685,176.35,176.23,0.04058926]
[1748383287808,28.76,176.37,176.24,10.08682029]
[1748383288007,5.6674,176.36,176.31,5.6687]
[1748383288208,28.76,176.37,176.28,28.76]
[1748383288699,0.04278602,176.34,176.33,5.6682]
[1748383289106,0.04278602,176.34,176.32,5.6686]
[1748383289295,0.04278602,176.34,176.31,0.03747736]
[1748383289997,0.04278602,176.34,176.32,5.6686]
[1748383290402,0.04278602,176.34,176.32,5.6683]
[1748383290704,0.04278602,176.34,176.31,0.03747736]
[1748383291101,0.04278602,176.34,176.32,28.74]
[1748383291302,28.74,176.43,176.32,28.74]
[1748383291501,28.74,176.44,176.32,28.74]
[1748383292006,5.6657,176.42,176.32,28.74]
[1748383292299,0.04367012,176.39,176.35,0.04146751]
[1748383292500,0.04367012,176.39,176.36,5.6673]
[1748383292905,30.6852,176.47,176.38,5.6664]
[1748383293405,5.6652,176.43,176.38,5.6664]
[1748383293804,5.6652,176.43,176.39,5.70928836]
[1748383294108,0.04065377,176.42,176.39,5.70928836]
[1748383294805,0.04065377,176.42,176.4,5.666]
[1748383295994,0.04065377,176.42,176.39,5.70918836]
[1748383297001,0.04065377,176.42,176.39,0.04298836]
[1748383297908,0.04065377,176.42,176.39,5.70908836]
[1748383298605,0.04065377,176.42,176.39,0.04298836]
[1748383299003,5.666,176.4,176.39,0.04298836]
[1748383299303,0.04065377,176.42,176.39,0.04298836]
[1748383299501,5.70625377,176.42,176.39,0.04298836]
[1748383300307,0.04065377,176.42,176.39,0.04298836]
[1748383300904,5.666,176.4,176.39,0.04298836]
[1748383303708,0.04065377,176.42,176.39,0.04298836]
[1748383304105,0.04065377,176.42,176.39,2.04948836]
[1748383304504,5.6636,176.48,176.39,5.93078836]
[1748383304701,28.72,176.5,176.39,5.8878]
[1748383305107,28.72,176.5,176.44,5.6647]
[1748383305408,0.0380169,176.49,176.45,0.03861564]